fUSD/lending_fUSD_20240724
["ID","MTS","AMOUNT","RATE_DAILY","PERIOD"]
[333063733,1721808632839,-150.0,0.00010818,2]
[333063734,1721808632850,-300.0,0.0001082,2]
[333063735,1721808632859,-1500.0,0.00010826,2]
[333063736,1721808632869,-150.0,0.00010827,2]
[333063737,1721808632878,-1500.0,0.00010828,2]
[333063739,1721808632887,-150.0,0.00010829,2]
[333063741,1721808632897,-150.0,0.0001083,2]
[333063743,1721808632907,-150.0,0.00010831,2]
[333063745,1721808632916,-150.0,0.00010831,2]
[333063747,1721808632925,-150.0,0.00010832,2]
[333063749,1721808632934,-150.0,0.00010832,2]
[333063751,1721808632943,-150.0,0.00010835,2]
[333063752,1721808632952,-300.0,0.00010837,2]
[333063753,1721808632961,-150.0,0.00010843,2]
[333063754,1721808632971,-300.0,0.00010844,2]
[333063755,1721808632980,-305.38255821,0.00010856,2]
[333063756,1721808632989,-150.0,0.00010856,2]
[333063757,1721808632998,-150.0,0.00010856,2]
[333063758,1721808633007,-1500.0,0.00010859,2]
[333063759,1721808633016,-150.0,0.0001086,2]
[333063760,1721808633025,-150.0,0.00010862,2]
[333063761,1721808633039,-150.0,0.00010862,2]
[333063762,1721808633049,-150.0,0.00010864,2]
[333063763,1721808633059,-1500.0,0.00010865,2]
[333063764,1721808633069,-150.0,0.00010866,2]
[333063765,1721808633079,-150.0,0.00010866,2]
[333063766,1721808633089,-150.0,0.00010867,2]
[333063767,1721808633102,-1500.0,0.00010869,2]
[333063768,1721808633115,-150.0,0.00010871,2]
[333063769,1721808633126,-1500.0,0.00010874,2]
[333063770,1721808633136,-150.0,0.00010874,2]
[333063771,1721808633147,-150.0,0.00010883,2]
[333063772,1721808633156,-300.0,0.00010885,2]
[333063773,1721808633480,-1500.0,0.00010886,2]
[333063774,1721808633490,-150.0,0.00010887,2]
[333063775,1721808633500,-150.0,0.00010888,2]
[333063776,1721808633510,-150.0,0.00010888,2]
[333063777,1721808633521,-1500.0,0.0001089,2]
[333063778,1721808633530,-1500.0,0.00010891,2]
[333063779,1721808633540,-150.0,0.00010897,2]
[333063780,1721808633550,-150.0,0.00010899,2]
[333063781,1721808633560,-5000.0,0.000109,2]
[333063782,1721808633570,-3692.83908208,0.000109,2]
[333063783,1721808633826,-6307.16091792,0.000109,2]
[333063784,1721808633837,-1104.1417,0.000109,2]
[333063785,1721808633850,-1000.0,0.000109,2]
[333063786,1721808633862,-314.06557764,0.000109,2]
[333063787,1721808633874,-1656.36011178,0.000109,2]
[333063788,1721808633886,-997.6907,0.000109,2]
[333063789,1721808633898,-150.0,0.00010903,2]
[333063790,1721808633909,-150.0,0.00010907,2]
[333063791,1721808633920,-150.0,0.00010913,2]
[333063792,1721808633932,-150.0,0.00010917,2]
[333063793,1721808633943,-1500.0,0.00010919,2]
[333063794,1721808633954,-1500.0,0.00010921,2]
[333063795,1721808633967,-150.0,0.00010921,2]
[333063796,1721808633977,-1500.0,0.00010922,2]
[333063797,1721808633989,-150.0,0.00010926,2]
[333063798,1721808633999,-150.0,0.00010934,2]
[333063799,1721808634009,-150.0,0.00010936,2]
[333063800,1721808634022,-150.0,0.00010939,2]
[333063801,1721808634034,-150.0,0.00010941,2]
[333063802,1721808634044,-153.79947692,0.00010941,2]
[333063803,1721808634054,-1500.0,0.00010942,2]
[333063804,1721808634064,-150.0,0.00010945,2]
[333063805,1721808634075,-1500.0,0.00010945,2]
[333063806,1721808634085,-150.0,0.00010945,2]
[333063807,1721808634097,-300.0,0.00010946,2]
[333063808,1721808634109,-150.0,0.00010946,2]
[333063809,1721808634119,-150.0,0.0001095,2]
[333063810,1721808634130,-300.0,0.00010951,2]
[333063811,1721808634139,-150.0,0.00010953,2]
[333063812,1721808634149,-1500.0,0.00010954,2]
[333063813,1721808634158,-1500.0,0.00010954,2]
[333063814,1721808634168,-1500.0,0.00010954,2]
[333063815,1721808634178,-150.0,0.00010954,2]
[333063816,1721808634188,-150.0,0.00010955,2]
[333063817,1721808634198,-1500.0,0.00010957,2]
[333063818,1721808634207,-200.0,0.00010959,2]
[333063819,1721808634217,-250.0,0.00010959,2]
[333063820,1721808634226,-178.94,0.00010959,2]
[333063821,1721808634237,-300.0,0.00010964,2]
[333063822,1721808634246,-150.0,0.00010967,2]
[333063823,1721808634256,-153.79947692,0.00010989,2]
[333063824,1721808634266,-150.0,0.00010996,2]
[333063825,1721808634276,-1635.50550599,0.00010999,2]
[333063826,1721808634286,-101288.39755826,0.00011,2]
[333063827,1721808634303,-1500.0,0.00011,2]
[333063828,1721808634315,-771902.5150501,0.00011,2]
[333063839,1721808637826,-2992.62356108,0.00011,2]
[333063841,1721808637837,-112705.99867121,0.00011,2]
[333063845,1721808637883,-4841.50028613,0.00011,2]
[333063847,1721808637894,-619.9401,0.00011,2]
[333063848,1721808637905,-12610.19051631,0.00011,2]
[333063851,1721808637990,-1479.11758056,0.00011,2]
[333063852,1721808638101,-995.74577285,0.00011,2]
[333063867,1721808639904,-662.68309162,0.00011,2]
[333063868,1721808639916,-26484.0,0.00011,2]
[333063869,1721808639955,-6746.71144992,0.00011,2]
[333063870,1721808639966,-982.24203917,0.00011,2]
[333063871,1721808640063,-1152.86405212,0.00011,2]
[333063872,1721808640074,-2318.4945901,0.00011,2]
[333063873,1721808641168,-70196.8605845,0.00011,2]
[333063874,1721808641278,-492.09818283,0.0001078,2]
[333063875,1721808641289,-532.69023215,0.0001078,2]
[333063876,1721808641299,-26.20326993,0.00011,2]
[333063877,1721808641310,-940.47525358,0.00011,2]
[333063888,1721808642866,-976.11795878,0.00010523,2]
[333063890,1721808642877,-273.4074,0.00010523,2]
[333063892,1721808642888,-370.5881043,0.00010523,2]
[333063897,1721808642928,-1535.09132713,0.00010523,2]
[333063910,1721808642978,-1624.04593256,0.00010523,2]
[333063913,1721808642988,-19744.32522351,0.00011,2]
[333063924,1721808643038,-5008.2402063,0.00011,2]
[333063926,1721808643049,-124865.73956791,0.00011,2]
[333063928,1721808643060,-907.39684316,0.00011,2]
[333063930,1721808643073,-1715.41144929,0.00011,2]
[333063933,1721808643102,-401444.6230863,0.00011,2]
[333064017,1721808645856,-918.07675489,0.00011,2]
[333064022,1721808645907,-5094.882921,0.00011,2]
[333064033,1721808646648,-3034.9099507,0.00011,2]
[333064034,1721808646898,-673.89584187,0.00011,2]
[333064041,1721808813602,155.46,8.219e-05,2]
[333064045,1721809442311,155.46,8.219e-05,2]
[333064046,1721809470782,150.0,0.00015471,120]
[333064186,1721809832048,-153.79947692,9.391e-05,2]
[333064187,1721809832058,-200.0,9.4e-05,2]
[333064188,1721809832067,-1000.0,9.843e-05,2]
[333064189,1721809832077,-150.0,9.888e-05,2]
[333064190,1721809832086,-359.88074679,0.0001,2]
[333064191,1721809832095,-153.79947692,0.0001008,2]
[333064192,1721809832105,-153.79947692,0.00010363,2]
[333064193,1721809832114,-753.12462565,0.00010557,2]
[333064194,1721809832124,-150.0,0.00010727,2]
[333064195,1721809832133,-150.0,0.00010731,2]
[333064196,1721809832143,-300.0,0.00010732,2]
[333064197,1721809832152,-150.0,0.00010736,2]
[333064198,1721809832161,-1500.0,0.00010736,2]
[333064199,1721809832170,-300.0,0.00010736,2]
[333064200,1721809832179,-300.0,0.00010736,2]
[333064201,1721809832188,-300.0,0.00010736,2]
[333064202,1721809832198,-150.0,0.00010737,2]
[333064203,1721809832207,-428.22,0.00010737,2]
[333064204,1721809832218,-499.99,0.00010737,2]
[333064205,1721809832228,-150.0,0.00010744,2]
[333064206,1721809832237,-1500.0,0.00010744,2]
[333064207,1721809832247,-155.46,0.00010745,2]
[333064208,1721809832255,-1119.98802968,0.00010745,2]
[333064209,1721809832275,-380.01197032,0.00010745,2]
[333064210,1721809832284,-801.41271212,0.00010745,2]
[333064211,1721809832295,-498.56133196,0.00010745,2]
[333064212,1721809832306,-200.02595592,0.00010745,2]
[333064213,1721809832316,-150.0,0.00010746,2]
[333064214,1721809832326,-150.0,0.00010747,2]
[333064215,1721809832335,-150.0,0.00010751,2]
[333064217,1721809832344,-150.0,0.00010755,2]
[333064219,1721809832353,-1500.0,0.00010755,2]
[333064221,1721809832363,-150.0,0.0001076,2]
[333064222,1721809832372,-150.0,0.00010762,2]
[333064224,1721809832381,-150.0,0.00010762,2]
[333064226,1721809832390,-1500.0,0.00010763,2]
[333064228,1721809832400,-134.88367626,0.00010764,2]
[333064230,1721809832411,-15.11632374,0.00010764,2]
[333064232,1721809832420,-150.0,0.00010765,2]
[333064234,1721809832430,-400.0,0.0001077,2]
[333064236,1721809832440,-150.0,0.00010773,2]
[333064238,1721809832449,-150.0,0.00010773,2]
[333064240,1721809832458,-150.0,0.00010777,2]
[333064241,1721809832467,-150.0,0.00010778,2]
[333064243,1721809832477,-150.0,0.00010779,2]
[333064244,1721809832486,-601.68606569,0.0001078,2]
[333064246,1721809832497,-457.01740791,0.0001078,2]
[333064248,1721809832506,-1049.25029481,0.0001078,2]
[333064249,1721809832518,-22.34684029,0.0001078,2]
[333064250,1721809832527,-256.6235685,0.0001078,2]
[333064251,1721809832537,-150.0,0.0001078,2]
[333064252,1721809832551,-150.0,0.0001078,2]
[333064253,1721809832571,-127.10441485,0.00010782,2]
[333064254,1721809832581,-22.89558515,0.00010782,2]
[333064255,1721809832639,-150.0,0.00010783,2]
[333064256,1721809832650,-150.0,0.00010785,2]
[333064257,1721809832660,-150.0,0.00010785,2]
[333064258,1721809832669,-150.0,0.00010786,2]
[333064259,1721809832678,-150.0,0.00010787,2]
[333064260,1721809832687,-150.0,0.00010788,2]
[333064261,1721809832696,-210.26571422,0.00010788,2]
[333064262,1721809832708,-1145.140066,0.00010788,2]
[333064263,1721809832717,-150.0,0.00010789,2]
[333064264,1721809832726,-126.04803113,0.00010794,2]
[333064265,1721809832737,-23.95196887,0.00010794,2]
[333064266,1721809832746,-726.31349307,0.00010795,2]
[333064267,1721809832757,-773.68650693,0.00010795,2]
[333064268,1721809832766,-492.91525214,0.00010798,2]
[333064269,1721809832785,-1007.08474786,0.00010798,2]
[333064270,1721809832794,-150.0,0.00010799,2]
[333064271,1721809832803,-1209.73953253,0.00010799,2]
[333064272,1721809832814,-290.26046747,0.00010799,2]
[333064273,1721809832823,-150.0,0.000108,2]
[333064274,1721809832832,-150.0,0.00010801,2]
[333064275,1721809832841,-1500.0,0.00010801,2]
[333064276,1721809832850,-150.0,0.00010803,2]
[333064277,1721809832859,-150.0,0.00010805,2]
[333064278,1721809832868,-150.0,0.00010806,2]
[333064279,1721809832877,-150.0,0.00010806,2]
[333064280,1721809832886,-188.02784338,0.00010807,2]
[333064281,1721809832895,-150.0,0.0001081,2]
[333064282,1721809832904,-300.0,0.0001081,2]
[333064283,1721809832913,-150.0,0.00010813,2]
[333064284,1721809832922,-150.0,0.00010815,2]
[333064285,1721809832931,-150.0,0.00010817,2]
[333064286,1721809832941,-150.0,0.00010818,2]
[333064287,1721809832950,-1500.0,0.0001082,2]
[333064288,1721809832959,-300.0,0.00010821,2]
[333064289,1721809832968,-150.0,0.00010823,2]
[333064290,1721809832977,-150.0,0.00010826,2]
[333064291,1721809832987,-150.0,0.00010826,2]
[333064292,1721809832996,-150.0,0.00010827,2]
[333064293,1721809833005,-150.0,0.00010829,2]
[333064294,1721809833013,-300.0,0.00010832,2]
[333064295,1721809833023,-150.0,0.00010833,2]
[333064296,1721809833032,-1500.0,0.00010836,2]
[333064297,1721809833040,-150.0,0.00010837,2]
[333064298,1721809833050,-150.0,0.0001084,2]
[333064299,1721809833078,-150.0,0.00010842,2]
[333064300,1721809833087,-150.0,0.00010844,2]
[333064301,1721809833097,-150.0,0.00010845,2]
[333064302,1721809833107,-150.0,0.00010848,2]
[333064303,1721809833116,-1096.07809458,0.0001085,2]
[333064304,1721809833128,-403.92190542,0.0001085,2]
[333064305,1721809833137,-150.0,0.00010851,2]
[333064306,1721809833146,-549.63522933,0.00010854,2]
[333064307,1721809833158,-518.40021227,0.00010854,2]
[333064308,1721809833170,-296.5600783,0.00010854,2]
[333064309,1721809833181,-135.4044801,0.00010854,2]
[333064310,1721809833190,-150.0,0.00010855,2]
[333064311,1721809833200,-150.0,0.00010857,2]
[333064312,1721809833209,-150.0,0.00010861,2]
[333064313,1721809833219,-1500.0,0.00010862,2]
[333064314,1721809833228,-1500.0,0.00010866,2]
[333064315,1721809833238,-150.0,0.00010867,2]
[333064316,1721809833247,-150.0,0.00010867,2]
[333064317,1721809833256,-150.0,0.00010867,2]
[333064318,1721809833265,-85.66705563,0.00010868,2]
[333064319,1721809833276,-64.33294437,0.00010868,2]
[333064320,1721809833286,-150.0,0.00010868,2]
[333064321,1721809833296,-150.0,0.0001087,2]
[333064322,1721809833305,-150.0,0.0001088,2]
[333064323,1721809833315,-150.0,0.0001088,2]
[333064324,1721809833324,-150.0,0.00010882,2]
[333064325,1721809833333,-153.79947692,0.00010883,2]
[333064326,1721809833343,-150.0,0.00010885,2]
[333064327,1721809833352,-150.0,0.00010888,2]
[333064328,1721809833361,-22890.32678214,0.0001089,2]
[333064329,1721809833373,-14418.30152426,0.0001089,2]
[333064330,1721809833384,-6594.65836655,0.0001089,2]
[333064331,1721809833395,-11144.37585885,0.0001089,2]
[333064332,1721809833406,-14582.78132822,0.0001089,2]
[333064333,1721809833417,-56031.55613998,0.0001089,2]
[333064334,1721809833426,-150.0,0.00010894,2]
[333064335,1721809833436,-150.0,0.00010896,2]
[333064336,1721809833445,-1500.0,0.00010896,2]
[333064337,1721809833455,-301.01675876,0.00010896,2]
[333064338,1721809833464,-150.0,0.00010897,2]
[333064339,1721809833474,-1000.23086999,0.00010897,2]
[333064340,1721809833483,-150.0,0.00010898,2]
[333064341,1721809833492,-10000.0,0.000109,2]
[333064342,1721809833501,-301.50295456,0.000109,2]
[333064343,1721809833510,-300.2980198,0.000109,2]
[333064344,1721809833519,-3312.72022352,0.000109,2]
[333064345,1721809833529,-155.12819673,0.000109,2]
[333064346,1721809833541,-150.0,0.00010902,2]
[333064347,1721809833553,-150.0,0.00010903,2]
[333064348,1721809833583,-220.88,0.00010904,3]
[333064349,1721809833593,-1500.0,0.00010911,2]
[333064350,1721809833602,-500.0,0.00010912,2]
[333064351,1721809833611,-150.49396578,0.00010913,2]
[333064352,1721809833622,-1500.0,0.00010916,2]
[333064353,1721809833631,-150.0,0.00010921,2]
[333064354,1721809833641,-150.0,0.00010921,2]
[333064355,1721809833651,-150.0,0.00010926,2]
[333064356,1721809833660,-150.0,0.00010929,2]
[333064357,1721809833670,-150.0,0.00010931,2]
[333064358,1721809833680,-150.0,0.00010932,2]
[333064359,1721809833689,-150.0,0.00010933,2]
[333064360,1721809833698,-150.0,0.00010933,2]
[333064361,1721809833707,-1500.0,0.00010933,2]
[333064362,1721809833717,-150.0,0.00010934,2]
[333064363,1721809833726,-150.0,0.00010934,2]
[333064364,1721809833736,-150.0,0.0001094,2]
[333064365,1721809833746,-150.0,0.00010944,2]
[333064366,1721809833756,-1500.0,0.00010944,2]
[333064367,1721809833765,-150.0,0.00010946,2]
[333064368,1721809833774,-150.0,0.00010947,2]
[333064369,1721809833784,-1500.0,0.00010948,2]
[333064370,1721809833794,-150.0,0.0001095,2]
[333064371,1721809833803,-150.0,0.00010954,2]
[333064372,1721809833812,-150.0,0.00010955,2]
[333064373,1721809833822,-150.0,0.00010957,2]
[333064374,1721809833831,-200.0,0.00010959,2]
[333064375,1721809833841,-732.19,0.00010959,2]
[333064376,1721809833850,-150.0,0.00010959,2]
[333064377,1721809833860,-150.0,0.00010965,2]
[333064378,1721809833869,-150.0,0.00010966,2]
[333064379,1721809833878,-150.0,0.00010968,2]
[333064380,1721809833887,-300.0,0.00010969,2]
[333064381,1721809833897,-150.0,0.0001097,2]
[333064382,1721809833906,-150.0,0.00010971,2]
[333064383,1721809833915,-150.0,0.00010973,2]
[333064384,1721809833924,-150.0,0.00010974,2]
[333064385,1721809833933,-150.0,0.00010975,2]
[333064386,1721809833943,-150.0,0.00010976,2]
[333064387,1721809833953,-152.29243002,0.00010976,2]
[333064388,1721809833962,-150.0,0.00010977,2]
[333064389,1721809833971,-150.0,0.00010977,2]
[333064390,1721809833980,-150.0,0.00010978,2]
[333064391,1721809833989,-1500.0,0.00010981,2]
[333064392,1721809833999,-150.0,0.00010983,2]
[333064393,1721809834009,-150.0,0.00010983,2]
[333064394,1721809834018,-150.0,0.00010985,2]
[333064395,1721809834027,-150.0,0.00010987,2]
[333064396,1721809834037,-300.0,0.00010987,2]
[333064397,1721809834046,-1500.0,0.00010987,2]
[333064398,1721809834055,-130.2865434,0.00010989,2]
[333064399,1721809834074,-19.7134566,0.00010989,2]
[333064400,1721809834083,-150.0,0.0001099,2]
[333064401,1721809834093,-300.0,0.0001099,2]
[333064402,1721809834107,-150.0,0.00010992,2]
[333064403,1721809834116,-150.0,0.00010994,2]
[333064404,1721809834126,-493.721,0.00010996,2]
[333064405,1721809834135,-227.802,0.00010996,2]
[333064406,1721809834144,-621.0,0.00010996,2]
[333064407,1721809834153,-450.0,0.00010996,2]
[333064408,1721809834162,-243.83536992,0.00010996,2]
[333064409,1721809834175,-566.16463008,0.00010996,2]
[333064410,1721809834184,-744.09734284,0.00010996,2]
[333064411,1721809834200,-614.92226377,0.00010996,2]
[333064412,1721809834212,-841.21190846,0.00010996,2]
[333064413,1721809834223,-182.76848493,0.00010996,2]
[333064414,1721809834232,-150.0,0.00010996,2]
[333064415,1721809834242,-548.0,0.00010996,2]
[333064416,1721809834252,-150.0,0.00010996,2]
[333064417,1721809834261,-1995.0,0.00010996,2]
[333064418,1721809834271,-3284.0,0.00010996,2]
[333064419,1721809834280,-343.869,0.00010996,2]
[333064420,1721809834289,-362.0,0.00010996,2]
[333064421,1721809834298,-1829.0,0.00010996,2]
[333064422,1721809834308,-3562.517,0.00010996,2]
[333064423,1721809834317,-1254.0,0.00010996,2]
[333064424,1721809834326,-1664.0,0.00010996,2]
[333064425,1721809834336,-154.33032652,0.00010997,2]
[333064426,1721809834346,-36508.8267342,0.00010998,2]
[333064427,1721809834355,-2852.0391256,0.00010998,2]
[333064428,1721809834365,-272.584251,0.00010999,2]
[333064429,1721809834374,-144925.03099701,0.00011,2]
[333064430,1721809834384,-12011.61,0.00011,2]
[333064431,1721809834393,-164483.20633009,0.00011,2]
[333064440,1721809838002,-831.382,0.00010996,2]
[333064442,1721809838014,-5857.35788323,0.00011,2]
[333064445,1721809838028,-2995.97861347,0.00011,2]
[333064447,1721809838041,-5629.96734332,0.00011,2]
[333064450,1721809838060,-1849.20000006,0.00011,2]
[333064452,1721809838075,-3781.2,0.00011,2]
[333064462,1721809838175,-335854.33160099,0.00011,2]
[333064465,1721809838187,-2608.64200773,0.00011,2]
[333064479,1721809841815,-150.0,0.00010765,2]
[333064480,1721809841830,-150.0,0.00010787,2]
[333064481,1721809841839,-150.0,0.00010793,2]
[333064482,1721809841851,-150.0,0.00010811,2]
[333064483,1721809841861,-113.16322836,0.00010816,2]
[333064484,1721809841876,-36.83677164,0.00010816,2]
[333064485,1721809841885,-150.0,0.00010857,2]
[333064486,1721809841894,-119.46502656,0.00010859,2]
[333064487,1721809841934,-30.53497344,0.00010859,2]
[333064488,1721809841944,-150.0,0.00010867,2]
[333064489,1721809841954,-150.0,0.00010922,2]
[333064490,1721809841964,-16.29502656,0.00010947,2]
[333064491,1721809842155,-133.70497344,0.00010947,2]
[333064492,1721809842165,-150.0,0.00010963,2]
[333064493,1721809842174,-150.0,0.00010991,2]
[333064494,1721809842184,-3676.8746226,0.00011,2]
[333064495,1721809842268,-26563.21593232,0.00011,2]
[333064498,1721809843441,-809.25803303,0.00011,2]
[333064510,1721809847008,-150.0,0.00010996,2]
[333064511,1721809847019,-621.0,0.00010996,2]
[333064512,1721809847029,-1980.79250304,0.00011,2]
[333064513,1721809847086,-367.1453454,0.00011,2]
[333064514,1721809847098,-495.458092,0.00011,2]
[333064515,1721809847135,-19999.982619,0.00011,2]
[333064516,1721809847146,-7957.48252444,0.00011,2]
[333064517,1721809847195,-4843.8199897,0.00011,2]
[333064518,1721809847257,-1324.98412,0.00011,2]
[333064519,1721809847268,-1418.17641098,0.00011,2]
[333064609,1721809848628,-6753100.12956209,0.00011,2]
[333064611,1721809848639,-2513.37,0.00011,2]
[333064613,1721809848650,-945395.72124903,0.00011,2]
[333064615,1721809848660,-1250.0,0.00011,2]
[333064617,1721809848670,-200.0,0.00011,2]
[333064619,1721809848681,-2522.804976,0.00011,2]
[333064621,1721809848692,-231.23,0.00011,15]
[333064623,1721809848702,-2000.0,0.00011,2]
[333064625,1721809848712,-187.917006,0.00011,2]
[333064627,1721809848723,-151.0,0.00011,2]
[333064629,1721809848733,-151.0,0.00011,2]
[333064631,1721809848743,-15274807.74025495,0.00011,2]
[333064633,1721809848752,-357.0,0.00011,2]
[333064635,1721809848762,-2322.7022,0.00011,2]
[333064637,1721809848772,-1000.0,0.00011,2]
[333064639,1721809848782,-5136.8454,0.00011,2]
[333064641,1721809848792,-225.0,0.00011,2]
[333064642,1721809848803,-1359.8602,0.00011,2]
[333064644,1721809848814,-3000.0,0.00011,2]
[333064646,1721809848827,-512.3189,0.00011,2]
[333064648,1721809848838,-412.01719899,0.00011,2]
[333064650,1721809848849,-412.01719899,0.00011,2]
[333064653,1721809848860,-412.01719899,0.00011,2]
[333064655,1721809848871,-1654.6492472,0.00011006,2]
[333064657,1721809848882,-602.0,0.00011014,2]
[333064659,1721809848893,-211.0,0.00011037,2]
[333064661,1721809848903,-150.64,0.00011037,2]
[333064663,1721809848914,-150.0,0.00011037,2]
[333064665,1721809848925,-1000.0,0.00011074,2]
[333064667,1721809848935,-7831.39261234,0.00011105,2]
[333064669,1721809848946,-10531.51879389,0.00011105,2]
[333064671,1721809848956,-15466.55053223,0.00011105,2]
[333064673,1721809848967,-9260.42425602,0.00011105,2]
[333064675,1721809848979,-2838.11736138,0.00011105,2]
[333064677,1721809848990,-5321.18872282,0.00011105,2]
[333064680,1721809849001,-4472.10989195,0.00011105,2]
[333064682,1721809849011,-2500.21964866,0.00011105,2]
[333064684,1721809849021,-5398.00008521,0.00011105,2]
[333064686,1721809849031,-5000.0,0.00011105,2]
[333064688,1721809849041,-3400.67809285,0.00011105,2]
[333064690,1721809849051,-3078.74473299,0.00011105,2]
[333064692,1721809849061,-1500.0,0.00011105,2]
[333064694,1721809849072,-719.18808611,0.00011105,2]
[333064696,1721809849083,-1296.83342836,0.00011105,2]
[333064698,1721809849093,-3657.40054532,0.00011105,2]
[333064700,1721809849103,-267.04318007,0.00011105,2]
[333064702,1721809849113,-1183.71347037,0.00011105,2]
[333064704,1721809849123,-2379.13540355,0.00011105,2]
[333064706,1721809849134,-1073.50473372,0.00011105,2]
[333064708,1721809849144,-2206.77744108,0.00011105,2]
[333064710,1721809849154,-1387.01694134,0.00011105,2]
[333064712,1721809849164,-484.66204508,0.00011105,2]
[333064714,1721809849175,-2143.60908971,0.00011105,2]
[333064716,1721809849184,-3117.36908564,0.00011105,2]
[333064718,1721809849193,-620.90767918,0.00011105,2]
[333064720,1721809849203,-493.11680964,0.00011105,2]
[333064722,1721809849214,-155.0,0.00011105,2]
[333064724,1721809849224,-1267.68422104,0.00011105,2]
[333064726,1721809849235,-686.25494599,0.00011105,2]
[333064729,1721809849250,-1137.84504697,0.00011105,2]
[333064731,1721809849260,-298.3151825,0.00011105,2]
[333064733,1721809849271,-342.19763295,0.00011105,2]
[333064735,1721809849282,-191.72753558,0.00011105,2]
[333064737,1721809849292,-365.23675251,0.00011105,2]
[333064739,1721809849303,-414.11214625,0.00011105,2]
[333064741,1721809849313,-155.0,0.00011105,2]
[333064743,1721809849324,-155.0,0.00011105,2]
[333064745,1721809849335,-160.92194982,0.00011105,2]
[333064747,1721809849347,-649.16074342,0.00011105,2]
[333064749,1721809849358,-159.43176878,0.00011105,2]
[333064751,1721809849368,-218.67150286,0.00011105,2]
[333064753,1721809849379,-158.83117325,0.00011105,2]
[333064760,1721809849389,-276.70760517,0.00011105,2]
[333064763,1721809849465,-236.08507119,0.00011105,2]
[333064764,1721809849475,-1274.17483771,0.00011105,2]
[333064766,1721809849486,-155.0,0.00011105,2]
[333064768,1721809849496,-367.46024595,0.00011105,2]
[333064770,1721809849507,-363.77204269,0.00011105,2]
[333064772,1721809849517,-959.15684539,0.00011105,2]
[333064774,1721809849528,-439.61379101,0.00011105,2]
[333064776,1721809849539,-1049.37651962,0.00011105,2]
[333064778,1721809849554,-203.18864313,0.00011105,2]
[333064780,1721809849565,-164.2225999,0.00011105,2]
[333064782,1721809849578,-155.0,0.00011105,2]
[333064785,1721809849591,-155.0,0.00011105,2]
[333064787,1721809849601,-155.0,0.00011105,2]
[333064789,1721809849612,-242.98169011,0.00011105,2]
[333064791,1721809849622,-224.31784547,0.00011105,2]
[333064793,1721809849633,-379.93349731,0.00011105,2]
[333064795,1721809849643,-270.27235549,0.00011105,2]
[333064797,1721809849653,-196.91232311,0.00011105,2]
[333064799,1721809849664,-308.9496988,0.00011105,2]
[333064801,1721809849674,-254.80645035,0.00011105,2]
[333064803,1721809849685,-531.70192292,0.00011105,2]
[333064805,1721809849695,-164.20048808,0.00011105,2]
[333064807,1721809849706,-155.0,0.00011105,2]
[333064808,1721809849717,-155.17733539,0.00011105,2]
[333064809,1721809849727,-155.0,0.00011105,2]
[333064810,1721809849739,-281.45589021,0.00011105,2]
[333064811,1721809849750,-432.00400263,0.00011105,2]
[333064812,1721809849761,-347.29560347,0.00011105,2]
[333064813,1721809849772,-265.1593702,0.00011105,2]
[333064814,1721809849782,-155.0,0.00011105,2]
[333064815,1721809849792,-155.0,0.00011105,2]
[333064816,1721809849802,-605.91677167,0.00011105,2]
[333064817,1721809849811,-463.06723591,0.00011105,2]
[333064818,1721809849822,-528.35850368,0.00011105,2]
[333064819,1721809849832,-155.18064233,0.00011105,2]